lending/lending_fUSD_20240705
["ID","MTS","AMOUNT","RATE_DAILY","PERIOD"]
[331280064,1720173902217,2236.78903156,0.00011199,2]
[331280066,1720173910830,1350.0,0.00011199,2]
[331280068,1720173913125,181.08184228,0.00011199,2]
[331280070,1720173921679,1268.58604214,0.00011199,2]
[331280072,1720173929928,2382.30514805,0.00011199,2]
[331280075,1720173940900,300.0,0.00011199,2]
[331280076,1720173942406,1685.38569813,0.00011199,2]
[331280078,1720173945754,1341.89704071,0.00011199,2]
[331280085,1720173955572,1070.57272705,0.00011199,2]
[331280086,1720173956809,1145.81755619,0.00011199,2]
[331280090,1720173980037,954.55858664,0.00011199,2]
[331280094,1720174001588,721.44508691,0.00011199,2]
[331280098,1720174020127,150.0,0.00011199,2]
[331280099,1720174020154,4995.56199768,0.00011199,2]
[331280101,1720174052961,3074.42673232,0.00011199,2]
[331280102,1720174054042,160.0,0.00032346,30]
[331280103,1720174054318,25281.51926581,0.00011199,2]
[331280105,1720174072999,150.0,0.00011199,2]
[331280106,1720174073539,194.35398415,0.00011199,2]
[331280109,1720174092019,159.03252278,0.00011199,2]
[331280111,1720174106709,155.17351293,0.00011199,2]
[331280115,1720174115762,308.12292157,0.00011199,2]
[331280116,1720174117280,368.22479486,0.00011199,2]
[331280117,1720174118917,195.92266575,0.00011199,2]
[331280118,1720174119924,366.11090361,0.00011199,2]
[331280119,1720174121120,216.67569474,0.00011199,2]
[331280120,1720174123134,155.20374793,0.00011199,2]
[331280123,1720174151035,272.93353483,0.00011199,2]
[331280124,1720174151789,-6256.41044676,0.00012172,2]
[331280125,1720174154799,8.71075144,0.00011199,2]
[331280126,1720174155421,188.04745964,0.00011199,2]
[331280128,1720174196590,254.227224,0.00011199,2]
[331280139,1720174235875,-551.38,0.00012254,2]
[331280142,1720174235886,-241.0,0.00012272,2]
[331280144,1720174235899,-2198.85723835,0.00012273,2]
[331280145,1720174235909,-438.28,0.00012303,2]
[331280146,1720174235919,-364.46359716,0.00012314,2]
[331280148,1720174235931,-250.0,0.0001233,2]
[331280149,1720174235942,-3556.67,0.00012363,2]
[331280151,1720174235951,-285.43,0.00012466,2]
[331280153,1720174235961,-250.0,0.00012467,2]
[331280155,1720174235970,-842.78,0.00012486,2]
[331280157,1720174235980,-23900.0,0.00012538,2]
[331280159,1720174235990,-171.14300236,0.00012713,2]
[331280161,1720174236000,-178.11,0.00012862,2]
[331280163,1720174236009,-150.0,0.00012871,2]
[331280165,1720174236019,-500.0,0.00012872,2]
[331280167,1720174236027,-799.32,0.00012872,2]
[331280169,1720174236037,-9999.99,0.00012872,2]
[331280171,1720174236046,-349.96,0.00012872,2]
[331280173,1720174236055,-4632.77112139,0.00012903,2]
[331280175,1720174236064,-479.08,0.00012904,2]
[331280176,1720174236074,-5445.83,0.00012904,2]
[331280177,1720174236083,-1245.75,0.00012911,2]
[331280178,1720174236092,-2154.75,0.00012913,2]
[331280179,1720174236101,-574.4,0.00012987,2]
[331280180,1720174236111,-499.99,0.00012987,2]
[331280181,1720174236121,-574.4,0.00013023,2]
[331280182,1720174236130,-150.99,0.00013023,2]
[331280183,1720174236141,-17874.33,0.00013023,2]
[331280184,1720174236151,-574.4,0.00013058,2]
[331280185,1720174236160,-574.4,0.00013094,2]
[331280186,1720174236170,-163.84092695,0.00013128,2]
[331280187,1720174236179,-574.4,0.0001313,2]
[331280188,1720174236188,-574.4,0.00013165,2]
[331280189,1720174236198,-574.4,0.00013201,2]
[331280190,1720174236388,-188.85,0.00013218,2]
[331280191,1720174236397,-574.4,0.00013237,2]
[331280192,1720174236406,-574.4,0.00013272,2]
[331280193,1720174236416,-670.39,0.00013273,2]
[331280194,1720174236426,-1012.2,0.00013273,2]
[331280195,1720174236435,-574.4,0.00013308,2]
[331280196,1720174236444,-574.4,0.00013343,2]
[331280197,1720174236454,-574.4,0.00013379,2]
[331280198,1720174236463,-574.4,0.00013415,2]
[331280199,1720174236473,-574.4,0.0001345,2]
[331280200,1720174236483,-791.84,0.00013472,2]
[331280201,1720174236494,-721.81960156,0.00013472,2]
[331280202,1720174236504,-1903.65279599,0.00013472,2]
[331280203,1720174236514,-1903.65279599,0.00013472,2]
[331280204,1720174236524,-12682.23154044,0.00013472,2]
[331280205,1720174236538,-3074.42673232,0.00013472,2]
[331280206,1720174236550,-574.4,0.00013486,2]
[331280207,1720174236561,-299.99,0.00013516,2]
[331280208,1720174236570,-672.35618026,0.00013516,2]
[331280209,1720174236580,-574.4,0.00013521,2]
[331280211,1720174236589,-155.0,0.00013543,2]
[331280212,1720174236599,-272.11678812,0.00013543,2]
[331280213,1720174236608,-574.4,0.00013557,2]
[331280214,1720174236618,-685.06477435,0.00013574,2]
[331280215,1720174236627,-366.025366,0.00013574,2]
[331280216,1720174236638,-16359.33042637,0.00013574,2]
[331280217,1720174236648,-173.91008171,0.00013574,2]
[331280218,1720174236658,-1252.75750804,0.00013574,2]
[331280219,1720174236667,-155.0,0.00013574,2]
[331280220,1720174236677,-689.52457337,0.00013574,2]
[331280221,1720174236687,-945.30597409,0.00013574,2]
[331280222,1720174236696,-155.0,0.00013574,2]
[331280223,1720174236706,-574.4,0.00013593,2]
[331280224,1720174236715,-312.2489,0.0001362,2]
[331280225,1720174236725,-1684.7492,0.0001362,2]
[331280226,1720174236734,-574.4,0.00013628,2]
[331280227,1720174236743,-574.4,0.00013664,2]
[331280228,1720174236753,-2751.0,0.00013699,2]
[331280229,1720174236762,-500.0,0.00013699,2]
[331280230,1720174236772,-514.96,0.00013699,2]
[331280231,1720174236782,-7526.92348273,0.0001372,2]
[331280232,1720174236795,-6266.26951727,0.0001372,2]
[331280233,1720174236804,-9462.20565911,0.0001372,2]
[331280234,1720174236815,-965.41908988,0.0001372,2]
[331280235,1720174236826,-346.48303694,0.0001372,2]
[331280236,1720174236838,-3832.64287863,0.0001372,2]
[331280237,1720174236853,-14198.30525229,0.0001372,2]
[331280238,1720174236865,-760.55939495,0.0001372,2]
[331280239,1720174236876,-3049.88511814,0.0001372,2]
[331280240,1720174236889,-46200.68907466,0.0001372,2]
[331280241,1720174236902,-910.8104954,0.0001372,2]
[331280242,1720174236911,-6404.80069541,0.00013736,2]
[331280243,1720174236921,-1471.99402501,0.00013736,2]
[331280244,1720174236932,-9062.7068,0.0001376,2]
[331280245,1720174236941,-400.0,0.000138,5]
[331280246,1720174236951,-1807.76757933,0.00013849,2]
[331280247,1720174236961,-155.0,0.00013889,2]
[331280248,1720174236971,-157.12217543,0.00013889,2]
[331280249,1720174236980,-242.30057872,0.00013899,2]
[331280250,1720174236990,-155.0,0.00013899,2]
[331280251,1720174236999,-155.0,0.00013899,2]
[331280252,1720174237008,-755.58438261,0.00013899,2]
[331280253,1720174237017,-235.68861418,0.00013899,2]
[331280254,1720174237028,-192.40825381,0.000139,2]
[331280255,1720174237037,-800.0,0.000139,5]
[331280256,1720174237046,-875.26352716,0.00013923,2]
[331280257,1720174237056,-2000.0,0.00013973,3]
[331280258,1720174237065,-242.36657615,0.00013989,2]
[331280259,1720174237074,-471.03585488,0.00013989,2]
[331280260,1720174237083,-500.0,0.00013998,2]
[331280261,1720174237092,-216.87339902,0.00013998,2]
[331280262,1720174237102,-500.0,0.00013998,2]
[331280263,1720174237111,-500.0,0.00013998,2]
[331280264,1720174237120,-500.0,0.00013998,2]
[331280265,1720174237130,-500.0,0.00013998,2]
[331280266,1720174237140,-229.01155506,0.00013998,2]
[331280267,1720174237150,-500.0,0.00013998,2]
[331280268,1720174237160,-500.0,0.00013998,2]
[331280269,1720174237169,-500.0,0.00013998,2]
[331280270,1720174237178,-500.0,0.00013998,2]
[331280271,1720174237188,-500.0,0.00013998,2]
[331280272,1720174237197,-500.0,0.00013998,2]
[331280273,1720174237207,-500.0,0.00013998,2]
[331280274,1720174237216,-1152.07979419,0.00013999,5]
[331280275,1720174237225,-3547.14727804,0.00013999,2]
[331280276,1720174237237,-384.38674592,0.00013999,2]
[331280277,1720174237248,-27343.59816553,0.00013999,2]
[331280278,1720174237259,-250.33780553,0.00013999,2]
[331280279,1720174237270,-2411.95134433,0.00013999,2]
[331280280,1720174237281,-898.53028455,0.00013999,2]
[331280281,1720174237292,-3971.07024,0.00013999,2]
[331280282,1720174237302,-570.09,0.00013999,2]
[331280283,1720174237313,-1004.35381733,0.00013999,2]
[331280284,1720174237577,-653245.2929727,0.00013999,2]
[331280285,1720174237587,-500.0,0.00013999,2]
[331280286,1720174237597,-160.86907781,0.00013999,2]
[331280287,1720174237607,-500.0,0.00013999,2]
[331280288,1720174237617,-499.99999999,0.00013999,2]
[331280289,1720174237627,-176.16622549,0.00013999,2]
[331280290,1720174237637,-500.0,0.00013999,2]
[331280291,1720174237655,-275962.5684846,0.00014,2]
[331280292,1720174237667,-341.68853004,0.00014,2]
[331280293,1720174237683,-377354.63068319,0.00014,2]
[331280294,1720174237692,-1074.23349,0.00014,2]
[331280295,1720174237703,-685.06477435,0.00014099,2]
[331280296,1720174237713,-227.17477303,0.00014099,2]
[331280297,1720174237723,-155.0,0.00014099,2]
[331280298,1720174237733,-227.17477303,0.00014099,2]
[331280299,1720174237742,-496.04703,0.00014247,2]
[331280300,1720174237752,-173.38,0.00014308,2]
[331280301,1720174237761,-155.0,0.00014499,2]
[331280302,1720174237771,-875.26352713,0.00014738,2]
[331280303,1720174237781,-305.01,0.0001487,2]
[331280304,1720174237791,-168.75,0.00014889,2]
[331280305,1720174237800,-168.399,0.00014899,2]
[331280306,1720174237810,-1300.0,0.000149,5]
[331280307,1720174237821,-878.23488154,0.00014935,2]
[331280308,1720174237831,-242.36657615,0.0001499,2]
[331280309,1720174237842,-24720.73753228,0.00014999,2]
[331280310,1720174237857,-60601.63427933,0.00015,2]
[331280311,1720174237870,-1331.32137545,0.00015,2]
[331280314,1720174238445,-358.48667185,0.00014911,2]
[331280398,1720174239940,-157.11482821,0.00013574,2]
[331280400,1720174239950,-1000.0,0.000143,2]
[331280402,1720174239960,-1291.51332815,0.00014911,2]
[331280405,1720174239970,-8410.27937667,0.00015,2]
[331280407,1720174239983,-573.2828905,0.00015,2]
[331280409,1720174239995,-399.70833916,0.00015,2]
[331280411,1720174240007,-9881.99222486,0.00015,2]
[331280413,1720174240018,-7768.1384,0.00015,2]
[331280416,1720174240031,-7146.2938,0.00015,2]
[331280418,1720174240043,-18261.65070178,0.00015,2]
[331280420,1720174240055,-822.49017547,0.00015,2]
[331280422,1720174240067,-603.45575644,0.00015,2]
[331280424,1720174240078,-910.60655848,0.00015,2]
[331280426,1720174240090,-251724.89561535,0.00015,2]
[331280429,1720174240103,-57155.06798569,0.00015,2]
[331280507,1720174241400,-277.18512147,0.00013574,2]
[331280511,1720174241411,-701.97047169,0.00013574,2]
[331280513,1720174241423,-651.59063898,0.00013574,2]
[331280521,1720174241986,-17998.29787262,0.00013574,2]
[331280524,1720174241996,-755.58438259,0.000139,2]
[331280526,1720174242005,-2441.92057213,0.00015,2]
[331280528,1720174243779,-199846.57418004,0.00015,2]
[331280532,1720174243789,-3994.42164536,0.00015,2]
[331280533,1720174243801,-168.399,0.00015035,2]
[331280536,1720174243811,-300.0,0.00015068,2]
[331280539,1720174243821,-496.04703,0.00015068,2]
[331280541,1720174243830,-150.0,0.00015093,2]
[331280543,1720174243839,-168.399,0.00015103,2]
[331280546,1720174243849,-258.97923164,0.00015166,2]
[331280547,1720174243861,-193.62934922,0.00015166,2]
[331280549,1720174243870,-168.399,0.00015172,2]
[331280550,1720174243880,-168.399,0.00015242,2]
[331280551,1720174243890,-969.3564,0.0001525,2]
[331280552,1720174243909,-969.3564,0.0001526,2]
[331280553,1720174243940,-212.65107117,0.00015287,2]
[331280554,1720174243959,-532.62124327,0.00015335,2]
[331280555,1720174243980,-15717.63971622,0.000154,2]
[331280556,1720174243998,-35591.7209191,0.00015535,2]
[331280557,1720174244024,-670.39,0.00015537,2]
[331280558,1720174244042,-875.26352713,0.00015553,2]
[331280559,1720174244055,-166.09,0.00015831,2]
[331280560,1720174244066,-171.55,0.00015831,2]
[331280561,1720174244076,-496.04703,0.0001589,2]
[331280562,1720174244086,-1000.0,0.00016088,2]
[331280563,1720174244096,-5883.64,0.00016116,2]
[331280564,1720174244106,-875.26352713,0.00016369,2]
[331280565,1720174244116,-172.03,0.00016371,2]
[331280566,1720174244125,-300.0,0.00016438,2]
[331280567,1720174244136,-250.0,0.00016463,2]
[331280568,1720174244145,-166.09,0.00016484,2]
[331280569,1720174244157,-619.53666885,0.00016566,2]
[331280570,1720174244168,-189.34,0.00016712,2]
[331280571,1720174244178,-496.04703,0.00016712,2]
[331280572,1720174244188,-305.01,0.00016729,2]
[331280573,1720174244197,-2493.38298312,0.00017,2]
[331280574,1720174244207,-166.09,0.00017137,2]
[331280575,1720174244217,-875.26352713,0.00017184,2]
[331280576,1720174244226,-2375.7192167,0.00017533,2]
[331280577,1720174244236,-496.04703,0.00017534,2]
[331280578,1720174244245,-10000.0,0.00017722,2]
[331280579,1720174244254,-166.09,0.00017791,2]
[331280580,1720174244263,-670.39,0.00017801,2]
[331280581,1720174244272,-155.0,0.00017829,2]
[331280582,1720174244282,-405.12061178,0.00017833,2]
[331280583,1720174244291,-1000.0,0.00017875,2]
[331280584,1720174244300,-150.0,0.00017901,2]
[331280585,1720174244310,-1265.01058332,0.00017925,2]
[331280586,1720174244320,-875.26352713,0.00017999,2]
[331280587,1720174244329,-155.0,0.00018,2]
[331280588,1720174244339,-415.70505063,0.00018,2]
[331280589,1720174244348,-360.0,0.00018114,2]
[331280590,1720174244360,-1658.0,0.00018114,2]
[331280591,1720174244370,-1830.0,0.00018114,2]
[331280592,1720174244380,-675.0,0.00018114,2]
[331280593,1720174244391,-167.004,0.00018114,2]
[331280594,1720174244403,-451.146,0.00018114,2]
[331280595,1720174244413,-444.0,0.00018114,2]
[331280596,1720174244422,-809.0,0.00018341,2]
[331280597,1720174244432,-622.944,0.00018341,2]
[331280598,1720174244442,-150.0,0.00018341,2]
[331280599,1720174244452,-496.04703,0.00018356,2]
[331280600,1720174244462,-1305.0,0.00018366,2]
[331280601,1720174244474,-2414.0,0.00018366,2]
[331280602,1720174244483,-3224.0,0.00018366,2]
[331280603,1720174244494,-548.0,0.00018366,2]
[331280604,1720174244503,-1988.0,0.00018366,2]
[331280605,1720174244512,-283.0,0.00018366,2]
[331280606,1720174244521,-1070.0,0.00018366,2]
[331280607,1720174244530,-291.0,0.00018366,2]
[331280608,1720174244541,-5177.0,0.00018366,2]
[331280609,1720174244552,-5811.0,0.00018366,2]
[331280610,1720174244561,-154.668,0.00018394,2]
[331280611,1720174244571,-300.77106222,0.00018432,2]
[331280612,1720174244580,-166.09,0.00018444,2]
[331280613,1720174244589,-305.01,0.00018588,2]
[331280614,1720174244599,-823.0,0.000186,3]
[331280615,1720174244608,-1630.1845532,0.00018717,2]
[331280616,1720174244617,-173.91008171,0.00018739,2]
[331280617,1720174244626,-155.50465982,0.00018739,2]
[331280618,1720174244644,-158.72665019,0.00018739,2]
[331280619,1720174244656,-263.46776226,0.00018759,2]
[331280620,1720174244665,-155.0,0.00018759,2]
[331280621,1720174244675,-266.23744785,0.00018759,2]
[331280622,1720174244687,-875.26352713,0.00018814,2]
[331280623,1720174244696,-4461.53872289,0.00018835,2]
[331280624,1720174244706,-878.23488152,0.00018913,2]
[331280625,1720174244715,-5000.0,0.00019,2]
[331280626,1720174244725,-155.1650936,0.00019,2]
[331280627,1720174244734,-155.34957523,0.00019,2]
[331280628,1720174244744,-420.09656236,0.00019,2]
[331280629,1720174244754,-420.09656236,0.00019,2]
[331280630,1720174244764,-420.09656236,0.00019,2]
[331280631,1720174244774,-1074.23349,0.00019,2]
[331280632,1720174244783,-300.0,0.00019,2]
[331280633,1720174244798,-172.03,0.000191,2]
[331280634,1720174244808,-155.93987876,0.00019177,2]
[331280635,1720174244818,-2358.68,0.00019178,2]
[331280636,1720174244828,-2000.0,0.00019178,2]
[331280637,1720174244838,-250.0,0.00019178,2]
[331280638,1720174244848,-514.96,0.00019178,2]
[331280639,1720174244861,-5408.78,0.00019178,2]
[331280640,1720174244871,-496.04703,0.00019178,2]
[331280641,1720174244881,-290.97986156,0.00019229,2]
[331280642,1720174244890,-945.30597409,0.00019352,2]
[331280643,1720174244903,-296.98016859,0.00019354,2]
[331280644,1720174244913,-369.04652903,0.00019399,2]
[331280645,1720174244922,-2500.0,0.000195,2]
[331280646,1720174244932,-885.60605257,0.000195,2]
[331280647,1720174244942,-875.26352713,0.00019629,2]
[331280648,1720174244951,-1000.0,0.00019663,2]
[331280649,1720174244961,-1036.0,0.00019717,2]
[331280650,1720174244971,-304.59253418,0.00019799,2]
[331280651,1720174244980,-1152.07979419,0.00019899,5]
[331280652,1720174244991,-1700.0,0.000199,7]
[331280653,1720174245000,-27669.7753725,0.000199,3]
[331280654,1720174245010,-19804.68706189,0.00019964,2]
[331280655,1720174245019,-536.46036163,0.00019964,2]
[331280656,1720174245030,-188.00153338,0.0002,2]
[331280657,1720174245040,-2035.4,0.0002,2]
[331280658,1720174245050,-1250.0,0.0002,2]
[331280659,1720174245060,-28354.39456528,0.0002,5]
[331280660,1720174245070,-496.04703,0.0002,2]
[331280661,1720174245080,-1015.92685363,0.0002,2]
[331280662,1720174245090,-2000.0,0.0002,2]
[331280663,1720174245100,-173.73361586,0.0002,2]
[331280664,1720174245110,-173.73361586,0.0002,2]
[331280665,1720174245119,-173.73361586,0.0002,2]
[331280666,1720174245129,-173.73361586,0.0002,2]
[331280667,1720174245139,-173.73361586,0.0002,2]
[331280670,1720174245150,-173.73361586,0.0002,2]
[331280673,1720174245160,-173.73361586,0.0002,2]
[331280676,1720174245176,-173.73361586,0.0002,2]
[331280678,1720174245186,-173.73361586,0.0002,2]
[331280680,1720174245196,-173.73361586,0.0002,2]
[331280682,1720174245205,-173.73361586,0.0002,2]
[331280684,1720174245215,-6281.61778263,0.0002,2]
[331280686,1720174245225,-670.39,0.00020065,2]
[331280688,1720174245235,-875.26352713,0.00020444,2]
[331280689,1720174245244,-305.01,0.00020447,2]
[331280690,1720174245254,-697.11563853,0.000205,2]
[331280691,1720174245263,-551.79054283,0.000205,2]
[331280692,1720174245272,-190.16634042,0.000205,2]
[331280693,1720174245282,-6080.90112073,0.000205,2]
[331280694,1720174245291,-203.31642538,0.0002067,7]
[331280695,1720174245301,-175.127575,0.00020696,2]
[331280696,1720174245310,-176.737416,0.00020696,2]
[331280697,1720174245320,-1554.599643,0.00020696,2]
[331280698,1720174245329,-1477.772448,0.00020696,2]
[331280699,1720174245339,-1079.490936,0.00020696,2]
[331280700,1720174245348,-958.44343,0.00020696,2]
[331280701,1720174245357,-177.007726,0.00020696,2]
[331280702,1720174245366,-692.917011,0.00020696,2]
[331280703,1720174245375,-180.202897,0.00020696,2]
[331280704,1720174245385,-879.276393,0.00020696,2]
[331280705,1720174245394,-1097.96091963,0.00020821,2]
[331280706,1720174245407,-496.04703,0.00020822,2]
[331280707,1720174245416,-1554.599643,0.00020954,2]
[331280708,1720174245426,-1477.772448,0.00020954,2]
[331280709,1720174245436,-1079.490936,0.00020954,2]
[331280710,1720174245446,-958.44343,0.00020954,2]
[331280711,1720174245457,-692.917011,0.00020954,2]
[331280712,1720174245467,-879.276393,0.00020954,2]
[331280714,1720174245477,-225.33520988,0.00021,2]
[331280715,1720174245487,-50000.0,0.0002107,2]
[331280716,1720174245497,-1658.0,0.00021114,2]
[331280717,1720174245509,-1820.0,0.00021114,2]
[331280718,1720174245522,-449.0,0.00021114,2]
[331280719,1720174245532,-443.0,0.00021114,2]
[331280720,1720174245544,-1554.599643,0.00021213,2]
[331280721,1720174245554,-1477.772448,0.00021213,2]
[331280722,1720174245564,-1079.490936,0.00021213,2]
[331280723,1720174245574,-958.44343,0.00021213,2]
[331280724,1720174245584,-692.917011,0.00021213,2]
[331280725,1720174245593,-879.276393,0.00021213,2]
[331280726,1720174245602,-875.26352713,0.0002126,2]
[331280727,1720174245612,-723.232,0.00021341,2]
[331280728,1720174245622,-619.0,0.00021341,2]
[331280729,1720174245632,-1304.0,0.00021366,2]
[331280730,1720174245642,-2375.0,0.00021366,2]
[331280731,1720174245653,-3206.0,0.00021366,2]
[331280732,1720174245662,-548.0,0.00021366,2]
[331280733,1720174245672,-1987.0,0.00021366,2]
[331280734,1720174245682,-283.0,0.00021366,2]
[331280735,1720174245691,-5177.0,0.00021366,2]
[331280736,1720174245701,-5811.0,0.00021366,2]
[331280737,1720174245711,-180.0,0.00021397,2]
[331280738,1720174245721,-1000.0,0.0002145,2]
[331280739,1720174245731,-1554.599643,0.00021472,2]
[331280740,1720174245741,-1477.772448,0.00021472,2]
[331280741,1720174245751,-1079.490936,0.00021472,2]
[331280742,1720174245761,-958.44343,0.00021472,2]
[331280743,1720174245771,-692.917011,0.00021472,2]
[331280744,1720174245780,-879.276393,0.00021472,2]
[331280745,1720174245789,-357.23,0.00021644,2]
[331280746,1720174245799,-154.74,0.00021644,2]
[331280747,1720174245810,-315.8,0.00021644,2]
[331280748,1720174245821,-174.44,0.00021644,2]
[331280749,1720174245831,-19874.15394137,0.00021677,2]
[331280750,1720174245840,-33150.53749143,0.000217,2]
[331280751,1720174245861,-5618.71976825,0.000217,2]
[331280752,1720174245873,-29369.08697295,0.000217,2]
[331280760,1720174246889,-6384.89807048,0.00017722,2]
[331280761,1720174246901,-151.36,0.0002106,2]
[331280762,1720174246910,-6295.95480284,0.000217,2]
[331280763,1720174246922,-429.06227699,0.000217,2]
[331280764,1720174247074,-755.58438259,0.000139,2]
[331280765,1720174247083,-266.22596941,0.00013998,2]
[331280766,1720174247093,-356.30245499,0.00015166,2]
[331280767,1720174247102,-1201.647,0.00018366,2]
[331280768,1720174247112,-17780.09011665,0.000217,2]
[331280769,1720174247124,-157356.54857089,0.000217,2]
[331280770,1720174247134,-1554.599643,0.0002173,2]
[331280771,1720174247144,-1477.772448,0.0002173,2]
[331280772,1720174247155,-1079.490936,0.0002173,2]
[331280773,1720174247165,-958.44343,0.0002173,2]
[331280774,1720174247175,-692.917011,0.0002173,2]
[331280775,1720174247184,-879.276393,0.0002173,2]
[331280776,1720174247195,-172.03,0.00021829,2]
[331280777,1720174247204,-150.0,0.00021918,2]
[331280778,1720174247388,-178.36,0.00021918,2]
[331280779,1720174247400,-237.75,0.00021918,2]
[331280780,1720174247410,-197.0,0.0002196,3]
[331280781,1720174247420,-2068.6303006,0.00021964,2]
[331280782,1720174247430,-868.10770587,0.00021967,2]
[331280783,1720174247439,-327.37681566,0.00021976,2]
[331280784,1720174247449,-716.86932143,0.00021981,2]
[331280785,1720174247459,-155.0,0.00021989,2]
[331280786,1720174247468,-155.0,0.00021989,2]
[331280787,1720174247478,-6281.61778263,0.00021989,2]
[331280788,1720174247487,-1300.0,0.00022,2]
[331280789,1720174247497,-350.61471063,0.00022,2]
[331280790,1720174247506,-793.21748259,0.00022,2]
[331280791,1720174247515,-796.27817629,0.0002202,2]
[331280792,1720174247524,-155.0,0.00022064,2]
[331280793,1720174247534,-399.13476319,0.00022065,2]
[331280794,1720174247544,-875.26352713,0.00022075,2]
[331280795,1720174247554,-2500.0,0.000222,2]
[331280796,1720174247564,-155.52921053,0.00022299,2]
[331280797,1720174247573,-305.01,0.00022306,2]
[331280798,1720174247583,-151.36,0.00022319,2]
[331280799,1720174247592,-670.39,0.00022329,2]
[331280800,1720174247602,-153.83039828,0.00022333,2]
[331280801,1720174247612,-168.75,0.00022334,2]
[331280802,1720174247621,-796.27817629,0.00022364,2]
[331280803,1720174247630,-2200.0,0.000224,8]
[331280804,1720174247639,-150.0,0.00022495,2]
[331280805,1720174247650,-400.0,0.000225,8]
[331280806,1720174247659,-224.6932323,0.0002253,2]
[331280807,1720174247669,-400.0,0.000226,8]
[331280808,1720174247679,-155.82460776,0.0002262,2]
[331280809,1720174247688,-155.4877656,0.000227,2]
[331280810,1720174247700,-400.0,0.000227,8]
[331280811,1720174247720,-652.80345774,0.0002272,2]
[331280812,1720174247729,-155.4877656,0.00022725,2]
[331280813,1720174247739,-400.0,0.000228,8]
[331280814,1720174247748,-500.0,0.00022806,2]
[331280815,1720174247757,-800.0,0.00022849,2]
[331280816,1720174247767,-800.0,0.00022849,2]
[331280817,1720174247776,-800.0,0.00022849,2]
[331280818,1720174247785,-800.0,0.00022849,2]
[331280819,1720174247795,-242.36657615,0.0002287,2]
[331280820,1720174247804,-151.36,0.0002287,2]
[331280821,1720174247813,-151.36,0.0002287,2]
[331280822,1720174247822,-151.36,0.0002287,2]
[331280823,1720174247831,-151.36,0.0002287,2]
[331280824,1720174247840,-151.36,0.0002287,2]
[331280825,1720174247851,-151.36,0.0002287,2]
[331280826,1720174247863,-151.36,0.0002287,2]
[331280827,1720174247873,-379450.14567152,0.0002288,2]
[331280828,1720174248003,-4378.68285526,0.0002288,2]
[331280829,1720174248037,-596.87319405,0.0002288,2]
[331280830,1720174248048,-40545.18316936,0.0002288,2]
[331280831,1720174248824,-2521.23852374,0.0002288,2]
[331280832,1720174248840,-13540.258555,0.0002288,2]
[331280833,1720174256531,579.79,0.00032345,30]
[331280844,1720174711576,430.89547468,0.00011199,2]
[331280845,1720174764889,1362.57270257,0.00011199,2]
[331280846,1720174765161,562.99997646,0.00011199,2]
[331280847,1720174765195,16301.98075432,0.00011199,2]
[331280848,1720174804141,150.0,0.00011199,2]
[331280849,1720174804169,260.75924553,0.00011199,2]
[331280850,1720174804200,11599.53052732,0.00011199,2]
[331280851,1720174892467,290.66575246,0.00011199,2]
[331280852,1720174897551,286.29,0.00025309,120]
[331280861,1720174946213,160.0,0.00032345,30]
[331280865,1720174981038,35591.7209191,0.00011199,2]
[331280875,1720175149613,21095.20591287,0.00011199,2]
[331280879,1720175177794,449.5249446,0.00011199,2]
[331280894,1720175405290,945.30597409,0.00011199,2]
[331280903,1720175436193,-2234.334,0.00012214,2]
[331280904,1720175436203,-331.8987224,0.00012418,2]
[331280906,1720175436213,-621.04,0.00012518,2]